fUST/lending_fUST_20240218
["ID","MTS","AMOUNT","RATE_DAILY","PERIOD"]
[314351260,1708217444526,-500.0,0.00029863,2]
[314351261,1708217444535,-11056.0469183,0.0003,7]
[314351286,1708217446465,-313.11416557,0.00027397,2]
[314351309,1708218453238,1496.23284699,0.00033,120]
[314351361,1708218638694,-273.54659754,0.00020999,2]
[314351363,1708218638704,-249.98465234,0.00021,2]
[314351365,1708218638713,-500.98889378,0.00023705,3]
[314351367,1708218638722,-3558.66152589,0.00023706,2]
[314351369,1708218638732,-1981.25667468,0.00023707,2]
[314351372,1708218638744,-1950.5936082,0.00023707,2]
[314351375,1708218638760,-20968.14971712,0.00023707,2]
[314351376,1708218638769,-1815.9772126,0.00023847,2]
[314351378,1708218638779,-199.23535544,0.00025222,2]
[314351380,1708218638788,-997.62650012,0.00025249,2]
[314351381,1708218638797,-30012.77723781,0.0002525,2]
[314351383,1708218638806,-4382.34758771,0.00025322,2]
[314351385,1708218638815,-621.42490528,0.00025322,2]
[314351387,1708218638825,-186.78763134,0.00025322,2]
[314351389,1708218638834,-199.23535543,0.00025946,2]
[314351391,1708218638843,-168.983147,0.00026164,2]
[314351393,1708218638852,-655.99018448,0.00027306,2]
[314351395,1708218638861,-196.79705534,0.00027306,2]
[314351397,1708218638870,-1270.55,0.00027376,3]
[314351399,1708218638878,-1058.79,0.00027376,3]
[314351401,1708218638887,-1524.66,0.00027386,3]
[314351404,1708218638899,-184.26,0.00027387,3]
[314351406,1708218638908,-552.82,0.00027387,3]
[314351408,1708218638917,-442.90461517,0.00027396,2]
[314351410,1708218638927,-500.0,0.00027396,2]
[314351411,1708218638936,-171.29863115,0.00027396,2]
[314351414,1708218638945,-500.0,0.00027396,2]
[314351416,1708218638955,-500.0,0.00027396,2]
[314351418,1708218638964,-500.0,0.00027396,2]
[314351420,1708218638973,-500.0,0.00027396,2]
[314351422,1708218638982,-235.96175116,0.00027396,2]
[314351423,1708218638991,-500.0,0.00027397,2]
[314351426,1708218639001,-159.88,0.00027397,2]
[314351428,1708218639011,-500.0,0.00027397,2]
[314351430,1708218639020,-500.0,0.00027397,2]
[314351431,1708218639029,-501.8497782,0.00027397,2]
[314351434,1708218639038,-500.0,0.00027397,2]
[314351435,1708218639048,-500.0,0.00027397,2]
[314351438,1708218639057,-500.0,0.00027397,2]
[314351440,1708218639067,-500.0,0.00027397,2]
[314351442,1708218639076,-500.0,0.00027397,2]
[314351444,1708218639084,-500.0,0.00027397,2]
[314351446,1708218639094,-510.91394851,0.00027397,2]
[314351448,1708218639103,-506.45631732,0.00027397,2]
[314351450,1708218639112,-500.0,0.00027397,2]
[314351452,1708218639121,-500.0,0.00027397,2]
[314351453,1708218639130,-500.0,0.00027397,2]
[314351455,1708218639139,-500.0,0.00027397,2]
[314351458,1708218639148,-500.0,0.00027397,2]
[314351459,1708218639161,-500.0,0.00027397,2]
[314351461,1708218639170,-500.0,0.00027397,2]
[314351463,1708218639179,-718.14,0.00027397,2]
[314351465,1708218639188,-500.0,0.00027397,2]
[314351467,1708218639197,-500.0,0.00027397,2]
[314351469,1708218639207,-801.84,0.00027397,2]
[314351471,1708218639216,-500.0,0.00027397,2]
[314351473,1708218639225,-466.09670805,0.00027397,2]
[314351476,1708218639236,-201.60696165,0.00027397,2]
[314351478,1708218639245,-500.0,0.00027397,2]
[314351480,1708218639255,-500.0,0.00027397,2]
[314351482,1708218639263,-500.0,0.00027397,2]
[314351484,1708218639271,-500.0,0.00027397,2]
[314351486,1708218639280,-506.76238936,0.00027397,2]
[314351488,1708218639289,-500.49656635,0.00027397,2]
[314351490,1708218639299,-500.0,0.00027397,2]
[314351492,1708218639308,-500.0,0.00027397,2]
[314351493,1708218639316,-500.0,0.00027397,2]
[314351495,1708218639326,-500.0,0.00027397,2]
[314351497,1708218639335,-558.62,0.00027397,2]
[314351499,1708218639344,-500.0,0.00027397,2]
[314351501,1708218639353,-500.0,0.00027397,2]
[314351503,1708218639362,-500.0,0.00027397,2]
[314351505,1708218639371,-506.1561853,0.00027397,2]
[314351507,1708218639380,-500.0,0.00027397,2]
[314351509,1708218639389,-500.0,0.00027397,2]
[314351511,1708218639399,-1000.0,0.00027397,2]
[314351513,1708218639407,-500.0,0.00027397,2]
[314351515,1708218639416,-500.0,0.00027397,2]
[314351517,1708218639426,-500.0,0.00027397,2]
[314351519,1708218639434,-500.0,0.00027397,2]
[314351521,1708218639443,-295.71638465,0.00027397,2]
[314351523,1708218639452,-155.0,0.00027397,2]
[314351525,1708218639461,-504.0168972,0.00027397,2]
[314351527,1708218639470,-500.0,0.00027397,2]
[314351529,1708218639479,-500.0,0.00027397,2]
[314351531,1708218639488,-509.24443762,0.00027397,2]
[314351533,1708218639497,-2985.94,0.00027397,2]
[314351535,1708218639508,-510.28221143,0.00027397,2]
[314351537,1708218639517,-500.0,0.00027397,2]
[314351539,1708218639526,-500.0,0.00027397,2]
[314351541,1708218639535,-4150.82,0.00027397,2]
[314351543,1708218639544,-1039.61,0.00027397,2]
[314351545,1708218639553,-509.33952143,0.00027397,2]
[314351547,1708218639562,-4929.86,0.00027397,2]
[314351549,1708218639574,-500.0,0.00027397,2]
[314351551,1708218639583,-500.0,0.00027397,2]
[314351553,1708218639593,-500.0,0.00027397,2]
[314351555,1708218639603,-2837.42,0.00027397,2]
[314351557,1708218639612,-500.0,0.00027397,2]
[314351559,1708218639621,-500.0,0.00027397,2]
[314351561,1708218639631,-599.23315095,0.00027397,2]
[314351563,1708218639640,-500.0,0.00027397,2]
[314351565,1708218639649,-500.0,0.00027397,2]
[314351569,1708218639669,-500.0,0.00027397,2]
[314351571,1708218639679,-501.06074641,0.00027397,2]
[314351573,1708218639688,-504.07309495,0.00027397,2]
[314351575,1708218639698,-500.0,0.00027397,2]
[314351577,1708218639707,-930.39,0.00027397,2]
[314351579,1708218639717,-500.0,0.00027397,2]
[314351581,1708218639726,-500.0,0.00027397,2]
[314351583,1708218639737,-500.0,0.00027397,2]
[314351585,1708218639746,-500.0,0.00027397,2]
[314351587,1708218639756,-500.0,0.00027397,2]
[314351589,1708218639765,-1010.13,0.00027397,2]
[314351591,1708218639774,-500.0,0.00027397,2]
[314351593,1708218639783,-500.0,0.00027397,2]
[314351595,1708218639793,-505.9151369,0.00027397,2]
[314351597,1708218639802,-500.0,0.00027397,2]
[314351599,1708218639812,-500.0,0.00027397,2]
[314351601,1708218639822,-5295.77,0.00027397,2]
[314351603,1708218639831,-2866.69,0.00027397,2]
[314351605,1708218639840,-500.0,0.00027397,2]
[314351607,1708218639850,-508.99933292,0.00027397,2]
[314351609,1708218639859,-500.0,0.00027397,2]
[314351611,1708218639868,-2997.44,0.00027397,2]
[314351613,1708218639878,-505.15966689,0.00027397,2]
[314351615,1708218639887,-565.3,0.00027397,2]
[314351617,1708218639896,-995.51,0.00027397,2]
[314351619,1708218639905,-500.0,0.00027397,2]
[314351621,1708218639914,-500.0,0.00027397,2]
[314351624,1708218639924,-500.0,0.00027397,2]
[314351626,1708218639934,-1896.38,0.00027397,2]
[314351627,1708218639943,-500.0,0.00027397,2]
[314351630,1708218639952,-867.99,0.00027397,2]
[314351632,1708218639962,-500.0,0.00027397,2]
[314351633,1708218639973,-500.0,0.00027397,2]
[314351636,1708218639983,-500.0,0.00027397,2]
[314351650,1708218640107,-500.0,0.00027397,2]
[314351652,1708218640117,-500.0,0.00027397,2]
[314351654,1708218640126,-500.0,0.00027397,2]
[314351656,1708218640135,-504.32224582,0.00027397,2]
[314351658,1708218640144,-500.0,0.00027397,2]
[314351660,1708218640156,-503.86860364,0.00027397,2]
[314351662,1708218640165,-702.38,0.00027397,2]
[314351664,1708218640174,-505.48477638,0.00027397,2]
[314351666,1708218640183,-503.92123215,0.00027397,2]
[314351668,1708218640192,-500.0,0.00027397,2]
[314351670,1708218640202,-612.83,0.00027397,2]
[314351672,1708218640211,-500.0,0.00027397,2]
[314351674,1708218640220,-545.23134524,0.00027397,2]
[314351676,1708218640229,-500.0,0.00027671,2]
[314351678,1708218640240,-500.0,0.00027671,2]
[314351680,1708218640249,-500.0,0.00027671,2]
[314351682,1708218640258,-506.06743355,0.00027671,2]
[314351684,1708218640268,-500.0,0.00027671,2]
[314351686,1708218640277,-295.36967243,0.00027671,2]
[314351688,1708218640286,-500.0,0.00027671,2]
[314351690,1708218640296,-198.19669351,0.00027671,2]
[314351691,1708218640305,-500.0,0.00027671,2]
[314351692,1708218640315,-500.0,0.00027671,2]
[314351693,1708218640325,-718.14,0.00027671,2]
[314351694,1708218640333,-801.84,0.00027671,2]
[314351695,1708218640342,-500.0,0.00027671,2]
[314351696,1708218640351,-500.0,0.00027671,2]
[314351697,1708218640360,-500.0,0.00027671,2]
[314351698,1708218640369,-500.0,0.00027671,2]
[314351699,1708218640378,-473.52,0.00027671,2]
[314351700,1708218640387,-1000.0,0.00027671,2]
[314351701,1708218640396,-500.0,0.00027671,2]
[314351702,1708218640405,-500.0,0.00027671,2]
[314351703,1708218640414,-500.0,0.00027671,2]
[314351704,1708218640424,-500.0,0.00027671,2]
[314351705,1708218640433,-2985.94,0.00027671,2]
[314351706,1708218640442,-500.0,0.00027671,2]
[314351708,1708218640451,-4150.82,0.00027671,2]
[314351710,1708218640460,-1039.61,0.00027671,2]
[314351712,1708218640470,-4929.86,0.00027671,2]
[314351714,1708218640479,-500.0,0.00027671,2]
[314351716,1708218640489,-500.0,0.00027671,2]
[314351718,1708218640498,-2837.42,0.00027671,2]
[314351720,1708218640507,-500.0,0.00027671,2]
[314351722,1708218640516,-500.0,0.00027671,2]
[314351724,1708218640525,-500.0,0.00027671,2]
[314351726,1708218640534,-500.0,0.00027671,2]
[314351728,1708218640543,-930.39,0.00027671,2]
[314351730,1708218640553,-500.0,0.00027671,2]
[314351732,1708218640562,-500.0,0.00027671,2]
[314351734,1708218640571,-500.0,0.00027671,2]
[314351736,1708218640580,-1010.13,0.00027671,2]
[314351738,1708218640589,-500.0,0.00027671,2]
[314351740,1708218640598,-500.0,0.00027671,2]
[314351742,1708218640607,-500.0,0.00027671,2]
[314351744,1708218640616,-5295.77,0.00027671,2]
[314351746,1708218640626,-2866.69,0.00027671,2]
[314351748,1708218640635,-500.0,0.00027671,2]
[314351750,1708218640645,-500.0,0.00027671,2]
[314351752,1708218640653,-2997.44,0.00027671,2]
[314351754,1708218640663,-565.3,0.00027671,2]
[314351756,1708218640672,-995.51,0.00027671,2]
[314351758,1708218640681,-500.0,0.00027671,2]
[314351760,1708218640690,-500.0,0.00027671,2]
[314351762,1708218640699,-1896.38,0.00027671,2]
[314351764,1708218640708,-500.0,0.00027671,2]
[314351766,1708218640718,-867.99,0.00027671,2]
[314351768,1708218640727,-500.0,0.00027671,2]
[314351770,1708218640737,-500.0,0.00027671,2]
[314351772,1708218640746,-500.0,0.00027671,2]
[314351774,1708218640755,-500.0,0.00027671,2]
[314351776,1708218640765,-500.0,0.00027671,2]
[314351778,1708218640774,-500.0,0.00027671,2]
[314351780,1708218640783,-500.0,0.00027671,2]
[314351782,1708218640792,-702.38,0.00027671,2]
[314351784,1708218640801,-617.51,0.00027671,2]
[314351786,1708218640810,-612.83,0.00027671,2]
[314351788,1708218640819,-500.0,0.00027671,2]
[314351790,1708218640828,-1210.64715255,0.000279,2]
[314351792,1708218640837,-621.386738,0.00027925,2]
[314351794,1708218640846,-500.0,0.00027945,2]
[314351796,1708218640856,-500.0,0.00027945,2]
[314351797,1708218640865,-500.0,0.00027945,2]
[314351798,1708218640874,-500.0,0.00027945,2]
[314351799,1708218640883,-500.0,0.00027945,2]
[314351800,1708218640892,-500.0,0.00027945,2]
[314351801,1708218640901,-718.14,0.00027945,2]
[314351803,1708218640910,-801.84,0.00027945,2]
[314351805,1708218640919,-500.0,0.00027945,2]
[314351806,1708218640928,-500.0,0.00027945,2]
[314351807,1708218640937,-500.0,0.00027945,2]
[314351808,1708218640947,-500.0,0.00027945,2]
[314351809,1708218640956,-500.0,0.00027945,2]
[314351810,1708218640965,-500.0,0.00027945,2]
[314351811,1708218640974,-186.88583443,0.00027945,2]
[314351812,1708218640983,-2985.94,0.00027945,2]
[314351813,1708218640992,-500.0,0.00027945,2]
[314351814,1708218641001,-4150.82,0.00027945,2]
[314351815,1708218641010,-1039.61,0.00027945,2]
[314351816,1708218641019,-4929.86,0.00027945,2]
[314351817,1708218641029,-500.0,0.00027945,2]
[314351818,1708218641038,-500.0,0.00027945,2]
[314351819,1708218641047,-2837.42,0.00027945,2]
[314351820,1708218641058,-500.0,0.00027945,2]
[314351821,1708218641067,-500.0,0.00027945,2]
[314351822,1708218641077,-500.0,0.00027945,2]
[314351823,1708218641086,-500.0,0.00027945,2]
[314351824,1708218641095,-930.39,0.00027945,2]
[314351825,1708218641104,-500.0,0.00027945,2]
[314351826,1708218641114,-500.0,0.00027945,2]
[314351827,1708218641123,-635.23390049,0.00027945,2]
[314351828,1708218641132,-1010.13,0.00027945,2]
[314351829,1708218641142,-500.0,0.00027945,2]
[314351830,1708218641152,-500.0,0.00027945,2]
[314351831,1708218641163,-500.0,0.00027945,2]
[314351832,1708218641173,-5295.77,0.00027945,2]
[314351833,1708218641182,-2866.69,0.00027945,2]
[314351834,1708218641191,-500.0,0.00027945,2]
[314351835,1708218641202,-500.0,0.00027945,2]
[314351836,1708218641211,-2997.44,0.00027945,2]
[314351837,1708218641220,-565.3,0.00027945,2]
[314351838,1708218641230,-995.51,0.00027945,2]
[314351839,1708218641240,-1896.38,0.00027945,2]
[314351840,1708218641250,-500.0,0.00027945,2]
[314351841,1708218641260,-867.99,0.00027945,2]
[314351842,1708218641270,-500.0,0.00027945,2]
[314351843,1708218641279,-220.49128141,0.00027945,2]
[314351844,1708218641289,-500.0,0.00027945,2]
[314351845,1708218641298,-500.0,0.00027945,2]
[314351846,1708218641308,-500.0,0.00027945,2]
[314351847,1708218641317,-500.0,0.00027945,2]
[314351848,1708218641327,-500.0,0.00027945,2]
[314351849,1708218641336,-702.38,0.00027945,2]
[314351850,1708218641345,-612.83,0.00027945,2]
[314351851,1708218641354,-5352.34117,0.00028,2]
[314351852,1708218641364,-155.02790502,0.00028217,2]
[314351853,1708218641373,-218.10345216,0.00028218,2]
[314351854,1708218641383,-326.5492516,0.00028219,2]
[314351856,1708218641393,-500.0,0.00028219,2]
[314351858,1708218641402,-500.0,0.00028219,2]
[314351860,1708218641411,-500.0,0.00028219,2]
[314351862,1708218641421,-500.0,0.00028219,2]
[314351863,1708218641430,-500.0,0.00028219,2]
[314351864,1708218641439,-718.14,0.00028219,2]
[314351865,1708218641449,-801.84,0.00028219,2]
[314351866,1708218641458,-500.0,0.00028219,2]
[314351867,1708218641467,-579.769935,0.00028219,2]
[314351868,1708218641476,-500.0,0.00028219,2]
[314351869,1708218641486,-500.0,0.00028219,2]
[314351870,1708218641495,-500.0,0.00028219,2]
[314351871,1708218641505,-500.0,0.00028219,2]
[314351872,1708218641514,-2985.94,0.00028219,2]
[314351873,1708218641523,-500.0,0.00028219,2]
[314351874,1708218641532,-4150.82,0.00028219,2]
[314351875,1708218641541,-1039.61,0.00028219,2]
[314351876,1708218641550,-4929.86,0.00028219,2]
[314351877,1708218641559,-500.0,0.00028219,2]
[314351878,1708218641568,-500.0,0.00028219,2]
[314351879,1708218641578,-2837.42,0.00028219,2]
[314351880,1708218641587,-500.0,0.00028219,2]
[314351881,1708218641596,-500.0,0.00028219,2]
[314351882,1708218641605,-500.0,0.00028219,2]
[314351883,1708218641615,-500.0,0.00028219,2]
[314351884,1708218641624,-930.39,0.00028219,2]
[314351885,1708218641634,-500.0,0.00028219,2]
[314351886,1708218641643,-633.21764016,0.00028219,2]
[314351887,1708218641653,-1010.13,0.00028219,2]
[314351888,1708218641661,-500.0,0.00028219,2]
[314351889,1708218641670,-500.0,0.00028219,2]
[314351890,1708218641680,-437.865938,0.00028219,2]
[314351891,1708218641689,-5295.77,0.00028219,2]
[314351892,1708218641698,-2866.69,0.00028219,2]
[314351893,1708218641707,-500.0,0.00028219,2]
[314351895,1708218641717,-517.07370122,0.00028219,2]
[314351897,1708218641726,-2997.44,0.00028219,2]
[314351899,1708218641735,-565.3,0.00028219,2]
[314351901,1708218641744,-995.51,0.00028219,2]
[314351903,1708218641753,-1896.38,0.00028219,2]
[314351905,1708218641762,-500.0,0.00028219,2]
[314351907,1708218641772,-867.99,0.00028219,2]
[314351909,1708218641781,-500.0,0.00028219,2]
[314351911,1708218641790,-500.0,0.00028219,2]
[314351914,1708218641807,-500.0,0.00028219,2]
[314351916,1708218641819,-500.0,0.00028219,2]
[314351918,1708218641829,-500.0,0.00028219,2]
[314351920,1708218641838,-500.0,0.00028219,2]
[314351922,1708218641847,-702.38,0.00028219,2]
[314351924,1708218641857,-612.83,0.00028219,2]
[314351926,1708218641866,-360.815733,0.000284,13]
[314351928,1708218641876,-500.0,0.00028493,2]
[314351930,1708218641885,-500.0,0.00028493,2]
[314351932,1708218641895,-500.0,0.00028493,2]
[314351934,1708218641904,-219.0763038,0.00028493,2]
[314351936,1708218641914,-718.14,0.00028493,2]
[314351939,1708218641924,-801.84,0.00028493,2]
[314351941,1708218641933,-500.0,0.00028493,2]
[314351943,1708218641942,-500.0,0.00028493,2]
[314351944,1708218641952,-500.0,0.00028493,2]
[314351946,1708218641961,-500.0,0.00028493,2]
[314351948,1708218641970,-2985.94,0.00028493,2]
[314351950,1708218641980,-500.0,0.00028493,2]
[314351952,1708218641989,-4150.82,0.00028493,2]
[314351962,1708218642101,-1039.61,0.00028493,2]
[314351964,1708218642111,-4929.86,0.00028493,2]
[314351966,1708218642123,-500.0,0.00028493,2]
[314351967,1708218642132,-500.0,0.00028493,2]
[314351970,1708218642142,-2837.42,0.00028493,2]
[314351971,1708218642154,-500.0,0.00028493,2]
[314351973,1708218642163,-500.0,0.00028493,2]
[314351976,1708218642173,-500.0,0.00028493,2]
[314351978,1708218642182,-500.0,0.00028493,2]
[314351979,1708218642191,-930.39,0.00028493,2]
[314351980,1708218642201,-500.0,0.00028493,2]
[314351981,1708218642210,-1010.13,0.00028493,2]
[314351982,1708218642220,-500.0,0.00028493,2]
[314351984,1708218642230,-500.0,0.00028493,2]
[314351986,1708218642241,-5295.77,0.00028493,2]
[314351988,1708218642249,-2866.69,0.00028493,2]
[314351989,1708218642258,-500.0,0.00028493,2]
[314351992,1708218642269,-2997.44,0.00028493,2]
[314351994,1708218642278,-565.3,0.00028493,2]
[314351995,1708218642288,-995.51,0.00028493,2]
[314351997,1708218642297,-151.0,0.00028493,2]
[314351999,1708218642306,-1896.38,0.00028493,2]
[314352001,1708218642315,-500.0,0.00028493,2]
[314352003,1708218642326,-867.99,0.00028493,2]
[314352006,1708218642336,-500.0,0.00028493,2]
[314352008,1708218642345,-500.0,0.00028493,2]
[314352010,1708218642354,-500.0,0.00028493,2]
[314352011,1708218642363,-500.0,0.00028493,2]
[314352013,1708218642373,-500.0,0.00028493,2]
[314352015,1708218642382,-702.38,0.00028493,2]
[314352017,1708218642391,-151.460735,0.00028493,2]
[314352019,1708218642400,-612.83,0.00028493,2]
[314352021,1708218642411,-368.52,0.00028757,3]
[314352023,1708218642419,-500.0,0.00028767,2]
[314352024,1708218642428,-500.0,0.00028767,2]
[314352025,1708218642438,-500.0,0.00028767,2]
[314352026,1708218642447,-718.14,0.00028767,2]
[314352027,1708218642456,-801.84,0.00028767,2]
[314352028,1708218642465,-151.0,0.00028767,2]
[314352029,1708218642473,-178.52227,0.00028767,2]
[314352030,1708218642483,-500.0,0.00028767,2]
[314352031,1708218642492,-151.0,0.00028767,2]
[314352032,1708218642501,-500.0,0.00028767,2]
[314352033,1708218642510,-500.0,0.00028767,2]
[314352034,1708218642518,-500.0,0.00028767,2]
[314352035,1708218642527,-495.19378,0.00028767,2]
[314352036,1708218642536,-495.19378,0.00028767,2]
[314352037,1708218642545,-151.0,0.00028767,2]
[314352038,1708218642554,-155.0,0.00028767,2]
[314352039,1708218642562,-2985.94,0.00028767,2]
[314352040,1708218642571,-500.0,0.00028767,2]
[314352041,1708218642580,-4150.82,0.00028767,2]
[314352042,1708218642589,-1039.61,0.00028767,2]
[314352043,1708218642598,-4929.86,0.00028767,2]
[314352044,1708218642607,-500.0,0.00028767,2]
[314352045,1708218642616,-500.0,0.00028767,2]
[314352046,1708218642624,-2837.42,0.00028767,2]
[314352047,1708218642633,-213.875841,0.00028767,2]
[314352048,1708218642642,-213.875841,0.00028767,2]
[314352049,1708218642650,-572.43,0.00028767,2]
[314352050,1708218642659,-500.0,0.00028767,2]
[314352051,1708218642668,-500.0,0.00028767,2]
[314352052,1708218642677,-500.0,0.00028767,2]
[314352053,1708218642686,-930.39,0.00028767,2]
[314352054,1708218642695,-500.0,0.00028767,2]
[314352055,1708218642704,-1010.13,0.00028767,2]
[314352056,1708218642713,-500.0,0.00028767,2]
[314352057,1708218642722,-500.0,0.00028767,2]
[314352058,1708218642731,-5295.77,0.00028767,2]
[314352059,1708218642741,-2866.69,0.00028767,2]
[314352060,1708218642750,-500.0,0.00028767,2]
[314352061,1708218642758,-2997.44,0.00028767,2]
[314352062,1708218642767,-565.3,0.00028767,2]
[314352063,1708218642776,-995.51,0.00028767,2]
[314352064,1708218642785,-1896.38,0.00028767,2]
[314352065,1708218642793,-503.82957273,0.00028767,2]
[314352066,1708218642803,-867.99,0.00028767,2]
[314352067,1708218642812,-483.486376,0.00028767,2]
[314352068,1708218642820,-500.0,0.00028767,2]
[314352069,1708218642829,-500.0,0.00028767,2]
[314352070,1708218642838,-500.0,0.00028767,2]
[314352071,1708218642847,-500.0,0.00028767,2]
[314352072,1708218642857,-702.38,0.00028767,2]
[314352073,1708218642867,-612.83,0.00028767,2]
[314352074,1708218642876,-400.3715917,0.00028767,2]
[314352075,1708218642885,-200.3193593,0.00028767,2]
[314352076,1708218642894,-1974.32885604,0.00029,7]
[314352077,1708218642903,-422.16862063,0.00029,2]
[314352078,1708218642913,-500.0,0.00029041,2]
[314352079,1708218642922,-500.0,0.00029041,2]
[314352080,1708218642931,-500.0,0.00029041,2]
[314352081,1708218642940,-718.14,0.00029041,2]
[314352082,1708218642949,-801.84,0.00029041,2]
[314352083,1708218642958,-500.0,0.00029041,2]
[314352084,1708218642967,-500.0,0.00029041,2]
[314352085,1708218642976,-441.0,0.00029041,2]
[314352086,1708218642985,-500.0,0.00029041,2]
[314352087,1708218642995,-495.19378,0.00029041,2]
[314352088,1708218643004,-495.19378,0.00029041,2]
[314352089,1708218643013,-2985.94,0.00029041,2]
[314352090,1708218643022,-536.36244291,0.00029041,2]
[314352091,1708218643030,-4150.82,0.00029041,2]
[314352092,1708218643039,-1039.61,0.00029041,2]
[314352093,1708218643049,-4929.86,0.00029041,2]
[314352094,1708218643058,-500.0,0.00029041,2]
[314352095,1708218643067,-500.0,0.00029041,2]
[314352096,1708218643076,-2837.42,0.00029041,2]
[314352097,1708218643085,-213.875841,0.00029041,2]
[314352098,1708218643094,-213.875841,0.00029041,2]
[314352099,1708218643103,-500.0,0.00029041,2]
[314352100,1708218643113,-500.0,0.00029041,2]
[314352101,1708218643123,-930.39,0.00029041,2]
[314352102,1708218643132,-500.0,0.00029041,2]
[314352103,1708218643141,-1010.13,0.00029041,2]
[314352104,1708218643152,-500.0,0.00029041,2]
[314352106,1708218643164,-500.0,0.00029041,2]
[314352108,1708218643173,-5295.77,0.00029041,2]
[314352109,1708218643183,-2866.69,0.00029041,2]
[314352110,1708218643192,-500.0,0.00029041,2]
[314352111,1708218643202,-2997.44,0.00029041,2]
[314352112,1708218643211,-565.3,0.00029041,2]
[314352113,1708218643219,-995.51,0.00029041,2]
[314352114,1708218643228,-1896.38,0.00029041,2]
[314352116,1708218643240,-867.99,0.00029041,2]
[314352117,1708218643249,-500.0,0.00029041,2]
[314352118,1708218643257,-500.0,0.00029041,2]
[314352119,1708218643266,-500.0,0.00029041,2]
[314352120,1708218643275,-500.0,0.00029041,2]
[314352121,1708218643283,-702.38,0.00029041,2]
[314352123,1708218643292,-612.83,0.00029041,2]
[314352124,1708218643301,-306.976895,0.00029076,2]
[314352125,1708218643310,-266.359161,0.00029076,2]
[314352126,1708218643319,-1786.56049038,0.000293,2]
[314352127,1708218643328,-160.24275126,0.00029315,3]
[314352128,1708218643336,-500.0,0.00029315,2]
[314352129,1708218643346,-500.0,0.00029315,2]
[314352130,1708218643355,-162.54380407,0.00029315,2]
[314352131,1708218643374,-337.45619593,0.00029315,2]
[314352133,1708218643384,-718.14,0.00029315,2]
[314352135,1708218643393,-801.84,0.00029315,2]
[314352137,1708218643404,-151.0,0.00029315,2]
[314352139,1708218643413,-151.0,0.00029315,2]
[314352140,1708218643422,-500.0,0.00029315,2]
[314352141,1708218643431,-500.0,0.00029315,2]
[314352142,1708218643440,-2985.94,0.00029315,2]
[314352143,1708218643449,-4150.82,0.00029315,2]
[314352144,1708218643458,-1039.61,0.00029315,2]
[314352145,1708218643467,-4855.29227822,0.00029315,2]
[314352147,1708218643582,-199.23535543,0.00026671,2]
[314352148,1708218643591,-74.56772178,0.00029315,2]
[314352150,1708218643600,-500.0,0.00029315,2]
[314352152,1708218643608,-5.24646151,0.00029315,2]
[314352153,1708218643620,-2832.17353849,0.00029315,2]
[314352154,1708218643629,-326.02,0.00029315,2]
[314352155,1708218643639,-500.0,0.00029315,2]
[314352156,1708218643648,-930.39,0.00029315,2]
[314352157,1708218643657,-500.0,0.00029315,2]